fUSD/lending_fUSD_20250610
["ID","MTS","AMOUNT","RATE_DAILY","PERIOD"]
[365203061,1749531054931,-152.366551,0.00017424,2]
[365203062,1749531054941,-151.0,0.00017424,2]
[365203063,1749531054950,-151.0,0.00017424,2]
[365203064,1749531054960,-151.0,0.00017424,2]
[365203065,1749531054970,-151.0,0.00017424,2]
[365203066,1749531054980,-151.0,0.00017424,2]
[365203067,1749531054989,-152.86658,0.00017424,2]
[365203068,1749531054999,-151.0,0.00017424,2]
[365203069,1749531055009,-151.0,0.00017424,2]
[365203070,1749531055019,-151.0,0.00017424,2]
[365203071,1749531055029,-749.22,0.00017424,2]
[365203073,1749531055039,-483.625853,0.00017424,2]
[365203075,1749531055049,-490.0,0.00017424,2]
[365203077,1749531055058,-151.0,0.00017424,2]
[365203079,1749531055067,-490.0,0.00017424,2]
[365203081,1749531055076,-151.0,0.00017424,2]
[365203083,1749531055086,-490.0,0.00017424,2]
[365203084,1749531055095,-151.0,0.00017424,2]
[365203085,1749531055105,-490.0,0.00017424,2]
[365203086,1749531055114,-490.0,0.00017424,2]
[365203087,1749531055124,-151.0,0.00017424,2]
[365203088,1749531055134,-413.05967186,0.00017424,2]
[365203089,1749531055143,-151.0,0.00017424,2]
[365203090,1749531055153,-548.47,0.00017424,2]
[365203091,1749531055166,-530.81,0.00017424,2]
[365203092,1749531055175,-282.217278,0.00017424,2]
[365203093,1749531055185,-282.217278,0.00017424,2]
[365203094,1749531055194,-151.0,0.00017424,2]
[365203095,1749531055205,-151.0,0.00017424,2]
[365203096,1749531055218,-151.0,0.00017424,2]
[365203097,1749531055228,-151.0,0.00017424,2]
[365203098,1749531055239,-151.0,0.00017424,2]
[365203099,1749531055250,-152.462824,0.00017424,2]
[365203100,1749531055259,-152.462824,0.00017424,2]
[365203101,1749531055269,-177.77207,0.00017424,2]
[365203102,1749531055279,-490.0,0.00017424,2]
[365203103,1749531055289,-490.0,0.00017424,2]
[365203104,1749531055298,-3093.68,0.00017424,2]
[365203105,1749531055307,-199.997695,0.00017424,2]
[365203106,1749531055317,-505.11,0.00017424,2]
[365203107,1749531055327,-490.0,0.00017424,2]
[365203108,1749531055337,-151.0,0.00017424,2]
[365203109,1749531055346,-771.72,0.00017424,2]
[365203110,1749531055356,-490.0,0.00017424,2]
[365203111,1749531055365,-578.15,0.00017424,2]
[365203112,1749531055375,-490.0,0.00017424,2]
[365203113,1749531055384,-490.0,0.00017424,2]
[365203114,1749531055395,-895.39,0.00017424,2]
[365203115,1749531055405,-1050.05,0.00017424,2]
[365203116,1749531055416,-869.33,0.00017424,2]
[365203117,1749531055430,-490.0,0.00017424,2]
[365203118,1749531055440,-539.45,0.00017424,2]
[365203119,1749531055450,-169.270272,0.00017424,2]
[365203120,1749531055459,-490.0,0.00017424,2]
[365203121,1749531055470,-490.0,0.00017424,2]
[365203122,1749531055480,-490.0,0.00017424,2]
[365203123,1749531055490,-546.92476334,0.00017424,2]
[365203124,1749531055503,-2021.14,0.00017424,2]
[365203125,1749531055515,-260.24117882,0.00017424,2]
[365203126,1749531055527,-490.0,0.00017424,2]
[365203127,1749531055537,-524.92,0.00017424,2]
[365203128,1749531055757,-490.0,0.00017424,2]
[365203129,1749531055775,-490.0,0.00017424,2]
[365203130,1749531055784,-480.0,0.00017424,2]
[365203131,1749531055794,-490.0,0.00017424,2]
[365203132,1749531055804,-490.0,0.00017424,2]
[365203133,1749531055815,-490.0,0.00017424,2]
[365203134,1749531055824,-165.77032215,0.00017424,2]
[365203135,1749531055834,-490.0,0.00017424,2]
[365203136,1749531055843,-852.22,0.00017424,2]
[365203137,1749531055853,-1161.1,0.00017424,2]
[365203138,1749531055863,-490.0,0.00017424,2]
[365203139,1749531055872,-490.0,0.00017424,2]
[365203140,1749531055881,-490.0,0.00017424,2]
[365203141,1749531055891,-490.0,0.00017424,2]
[365203142,1749531055901,-490.0,0.00017424,2]
[365203143,1749531055911,-1165.21,0.00017424,2]
[365203144,1749531055920,-1144.01,0.00017424,2]
[365203145,1749531055929,-490.0,0.00017424,2]
[365203146,1749531055938,-490.0,0.00017424,2]
[365203147,1749531055948,-490.0,0.00017424,2]
[365203148,1749531055956,-490.0,0.00017424,2]
[365203149,1749531055964,-653.12,0.00017424,2]
[365203150,1749531055973,-490.0,0.00017424,2]
[365203151,1749531055981,-1660.8,0.00017424,2]
[365203152,1749531055990,-588.25,0.00017424,2]
[365203153,1749531055999,-490.0,0.00017424,2]
[365203154,1749531056007,-490.0,0.00017424,2]
[365203155,1749531056016,-490.0,0.00017424,2]
[365203156,1749531056025,-1064.72,0.00017424,2]
[365203157,1749531056033,-27374.38,0.00017424,2]
[365203158,1749531056042,-490.0,0.00017424,2]
[365203159,1749531056051,-740.84,0.00017424,2]
[365203160,1749531056059,-846.1,0.00017424,2]
[365203161,1749531056068,-490.0,0.00017424,2]
[365203162,1749531056077,-490.0,0.00017424,2]
[365203163,1749531056086,-490.0,0.00017424,2]
[365203164,1749531056094,-521.73,0.00017424,2]
[365203165,1749531056103,-490.0,0.00017424,2]
[365203166,1749531056111,-490.0,0.00017424,2]
[365203167,1749531056120,-490.0,0.00017424,2]
[365203168,1749531056131,-151.0,0.00017424,2]
[365203169,1749531056141,-490.0,0.00017424,2]
[365203170,1749531056150,-1177.41,0.00017424,2]
[365203171,1749531056159,-490.0,0.00017424,2]
[365203172,1749531056169,-490.0,0.00017424,2]
[365203173,1749531056180,-1183.7,0.00017424,2]
[365203174,1749531056189,-151.0,0.00017424,2]
[365203175,1749531056199,-200.0,0.00017448,2]
[365203176,1749531056210,-298.77669866,0.00017489,2]
[365203177,1749531056219,-768.0,0.000175,2]
[365203178,1749531056229,-500.0,0.00017565,2]
[365203179,1749531056239,-200.0,0.00017565,2]
[365203180,1749531056248,-1000.0,0.00017568,2]
[365203181,1749531056258,-500.0,0.00017568,2]
[365203182,1749531056267,-1500.0,0.00017568,2]
[365203183,1749531056277,-1500.0,0.00017568,2]
[365203184,1749531056287,-300.0,0.00017588,2]
[365203185,1749531056297,-500.0,0.00017588,2]
[365203186,1749531056307,-151.0,0.00017589,2]
[365203187,1749531056316,-151.0,0.00017589,2]
[365203188,1749531056326,-151.0,0.00017589,2]
[365203189,1749531056335,-151.0,0.00017589,2]
[365203190,1749531056345,-749.22,0.00017589,2]
[365203191,1749531056354,-247.381337,0.00017589,2]
[365203192,1749531056363,-490.0,0.00017589,2]
[365203193,1749531056372,-490.0,0.00017589,2]
[365203194,1749531056382,-490.0,0.00017589,2]
[365203195,1749531056391,-470.650731,0.00017589,2]
[365203196,1749531056400,-470.650731,0.00017589,2]
[365203197,1749531056410,-249.35957743,0.00017589,2]
[365203198,1749531056421,-490.0,0.00017589,2]
[365203199,1749531056430,-530.81,0.00017589,2]
[365203200,1749531056439,-4677.917954,0.00017589,2]
[365203201,1749531056447,-4677.917954,0.00017589,2]
[365203202,1749531056455,-151.0,0.00017589,2]
[365203203,1749531056465,-151.0,0.00017589,2]
[365203204,1749531056474,-158.346538,0.00017589,2]
[365203205,1749531056482,-158.346538,0.00017589,2]
[365203206,1749531056490,-490.0,0.00017589,2]
[365203207,1749531056500,-154.047487,0.00017589,2]
[365203208,1749531056508,-3093.68,0.00017589,2]
[365203209,1749531056517,-505.11,0.00017589,2]
[365203210,1749531056526,-490.0,0.00017589,2]
[365203211,1749531056535,-771.72,0.00017589,2]
[365203212,1749531056544,-221.57,0.00017589,2]
[365203213,1749531056553,-578.15,0.00017589,2]
[365203214,1749531056562,-356.32,0.00017589,2]
[365203215,1749531056571,-490.0,0.00017589,2]
[365203216,1749531056579,-151.0,0.00017589,2]
[365203217,1749531056588,-895.39,0.00017589,2]
[365203218,1749531056596,-1050.05,0.00017589,2]
[365203219,1749531056605,-869.33,0.00017589,2]
[365203220,1749531056614,-490.0,0.00017589,2]
[365203221,1749531056620,-539.45,0.00017589,2]
[365203222,1749531056626,-490.0,0.00017589,2]
[365203223,1749531056633,-490.0,0.00017589,2]
[365203224,1749531056640,-209.32,0.00017589,2]
[365203225,1749531056648,-2021.14,0.00017589,2]
[365203226,1749531056655,-490.0,0.00017589,2]
[365203227,1749531056662,-524.92,0.00017589,2]
[365203228,1749531056669,-490.0,0.00017589,2]
[365203229,1749531056676,-490.0,0.00017589,2]
[365203230,1749531056684,-175.77599765,0.00017589,2]
[365203231,1749531056694,-490.0,0.00017589,2]
[365203232,1749531056704,-490.0,0.00017589,2]
[365203233,1749531056713,-490.0,0.00017589,2]
[365203234,1749531056723,-852.22,0.00017589,2]
[365203235,1749531056732,-1161.1,0.00017589,2]
[365203236,1749531056741,-490.0,0.00017589,2]
[365203237,1749531056750,-490.0,0.00017589,2]
[365203238,1749531056760,-490.0,0.00017589,2]
[365203239,1749531056769,-490.0,0.00017589,2]
[365203240,1749531056779,-328.35864709,0.00017589,2]
[365203241,1749531056789,-1165.21,0.00017589,2]
[365203242,1749531056799,-1144.01,0.00017589,2]
[365203243,1749531056808,-490.0,0.00017589,2]
[365203244,1749531056818,-490.0,0.00017589,2]
[365203245,1749531056827,-490.0,0.00017589,2]
[365203246,1749531056836,-603.67861225,0.00017589,2]
[365203247,1749531056846,-653.12,0.00017589,2]
[365203248,1749531056856,-151.0,0.00017589,2]
[365203249,1749531056865,-448.06132189,0.00017589,2]
[365203250,1749531056875,-1660.8,0.00017589,2]
[365203251,1749531056885,-588.25,0.00017589,2]
[365203252,1749531056895,-490.0,0.00017589,2]
[365203253,1749531056904,-490.0,0.00017589,2]
[365203254,1749531056914,-608.58976489,0.00017589,2]
[365203255,1749531056923,-1064.72,0.00017589,2]
[365203256,1749531056934,-27374.38,0.00017589,2]
[365203257,1749531056944,-490.0,0.00017589,2]
[365203258,1749531056953,-740.84,0.00017589,2]
[365203259,1749531056963,-846.1,0.00017589,2]
[365203260,1749531056973,-490.0,0.00017589,2]
[365203261,1749531056983,-490.0,0.00017589,2]
[365203262,1749531056992,-490.0,0.00017589,2]
[365203263,1749531057002,-521.73,0.00017589,2]
[365203264,1749531057012,-596.640802,0.00017589,2]
[365203265,1749531057022,-490.0,0.00017589,2]
[365203266,1749531057032,-490.0,0.00017589,2]
[365203267,1749531057041,-490.0,0.00017589,2]
[365203268,1749531057050,-596.640802,0.00017589,2]
[365203269,1749531057060,-490.0,0.00017589,2]
[365203270,1749531057070,-356.684717,0.00017589,2]
[365203271,1749531057080,-1177.41,0.00017589,2]
[365203272,1749531057090,-356.684717,0.00017589,2]
[365203273,1749531057101,-490.0,0.00017589,2]
[365203274,1749531057110,-490.0,0.00017589,2]
[365203275,1749531057120,-1183.7,0.00017589,2]
[365203276,1749531057130,-151.0,0.00017589,2]
[365203277,1749531057140,-766.63,0.00017618,2]
[365203278,1749531057149,-224.01670917,0.00017628,2]
[365203279,1749531057159,-1132.623378,0.0001763,2]
[365203280,1749531057169,-299.0,0.00017632,4]
[365203281,1749531057180,-250.0,0.00017645,2]
[365203282,1749531057189,-250.0,0.00017645,2]
[365203283,1749531057199,-250.0,0.00017645,2]
[365203284,1749531057208,-600.0,0.00017645,4]
[365203285,1749531057218,-151.0,0.00017653,2]
[365203286,1749531057228,-151.0,0.00017653,2]
[365203287,1749531057237,-151.0,0.00017653,2]
[365203288,1749531057246,-153.284783,0.00017653,2]
[365203289,1749531057256,-7963.75262703,0.00017699,2]
[365203290,1749531057265,-6246.28,0.000177,2]
[365203291,1749531057276,-151.0,0.000177,2]
[365203292,1749531057286,-151.0,0.000177,2]
[365203293,1749531057295,-500.0,0.00017704,2]
[365203294,1749531057304,-500.0,0.00017704,2]
[365203295,1749531057314,-150.0,0.00017719,2]
[365203296,1749531057323,-627.96,0.00017727,2]
[365203297,1749531057332,-500.0,0.00017727,2]
[365203298,1749531057341,-151.0,0.00017728,2]
[365203299,1749531057351,-151.0,0.00017728,2]
[365203300,1749531057360,-151.0,0.00017728,2]
[365203301,1749531057369,-166.353755,0.00017728,2]
[365203302,1749531057379,-151.0,0.00017728,2]
[365203303,1749531057388,-151.0,0.00017728,2]
[365203304,1749531057398,-151.0,0.00017728,2]
[365203305,1749531057408,-151.0,0.00017728,2]
[365203306,1749531057418,-151.0,0.00017728,2]
[365203307,1749531057431,-151.0,0.00017728,2]
[365203308,1749531057440,-151.0,0.00017728,2]
[365203309,1749531057449,-151.0,0.00017728,2]
[365203310,1749531057459,-151.0,0.00017728,2]
[365203311,1749531057469,-151.0,0.00017728,2]
[365203312,1749531057479,-164.832722,0.00017728,2]
[365203313,1749531057488,-151.0,0.00017728,2]
[365203314,1749531057498,-287.001504,0.00017728,2]
[365203315,1749531057509,-287.001504,0.00017728,2]
[365203316,1749531057518,-151.0,0.00017728,2]
[365203317,1749531057529,-151.0,0.00017728,2]
[365203318,1749531057539,-151.0,0.00017728,2]
[365203319,1749531057549,-190.728468,0.00017728,2]
[365203320,1749531057559,-151.0,0.00017728,2]
[365203321,1749531057568,-151.0,0.00017728,2]
[365203322,1749531057579,-151.0,0.00017728,2]
[365203323,1749531057589,-151.0,0.00017728,2]
[365203324,1749531057598,-151.628595,0.00017728,2]
[365203325,1749531057608,-151.0,0.00017728,2]
[365203326,1749531057618,-151.0,0.00017728,2]
[365203327,1749531057627,-1000.0,0.0001774,2]
[365203328,1749531057637,-150.0,0.00017742,2]
[365203329,1749531057646,-151.09,0.00017744,2]
[365203330,1749531057656,-4229.63491455,0.00017745,2]
[365203331,1749531057666,-150.0,0.00017746,2]
[365203332,1749531057675,-500.0,0.00017752,2]
[365203333,1749531057685,-300.0,0.00017752,2]
[365203334,1749531057695,-300.0,0.00017752,2]
[365203335,1749531057705,-151.0,0.00017753,2]
[365203336,1749531057714,-151.0,0.00017753,2]
[365203337,1749531057724,-151.0,0.00017753,2]
[365203338,1749531057733,-151.0,0.00017753,2]
[365203339,1749531057742,-151.0,0.00017753,2]
[365203340,1749531057752,-151.0,0.00017753,2]
[365203341,1749531057761,-151.0,0.00017753,2]
[365203342,1749531057770,-151.0,0.00017753,2]
[365203343,1749531057780,-151.0,0.00017753,2]
[365203344,1749531057789,-151.0,0.00017753,2]
[365203345,1749531057798,-151.0,0.00017753,2]
[365203346,1749531057808,-151.0,0.00017753,2]
[365203347,1749531057817,-151.0,0.00017753,2]
[365203348,1749531057827,-151.0,0.00017753,2]
[365203349,1749531057836,-151.0,0.00017753,2]
[365203350,1749531057845,-151.0,0.00017753,2]
[365203351,1749531057854,-151.0,0.00017753,2]
[365203352,1749531057864,-151.0,0.00017753,2]
[365203353,1749531057873,-151.0,0.00017753,2]
[365203354,1749531057883,-152.171545,0.00017753,2]
[365203355,1749531057892,-151.0,0.00017753,2]
[365203356,1749531057902,-162.161104,0.00017753,2]
[365203357,1749531057911,-151.0,0.00017753,2]
[365203358,1749531057921,-151.0,0.00017753,2]
[365203359,1749531057930,-749.22,0.00017753,2]
[365203360,1749531057939,-483.625853,0.00017753,2]
[365203361,1749531057949,-490.0,0.00017753,2]
[365203362,1749531057958,-151.0,0.00017753,2]
[365203363,1749531057967,-151.0,0.00017753,2]
[365203364,1749531058031,-151.0,0.00017753,2]
[365203365,1749531058041,-151.0,0.00017753,2]
[365203366,1749531058050,-151.0,0.00017753,2]
[365203367,1749531058060,-151.0,0.00017753,2]
[365203368,1749531058069,-151.0,0.00017753,2]
[365203369,1749531058079,-151.0,0.00017753,2]
[365203370,1749531058088,-151.0,0.00017753,2]
[365203371,1749531058097,-151.0,0.00017753,2]
[365203372,1749531058107,-151.0,0.00017753,2]
[365203373,1749531058116,-151.0,0.00017753,2]
[365203374,1749531058125,-152.81944,0.00017753,2]
[365203375,1749531058135,-151.0,0.00017753,2]
[365203376,1749531058144,-151.0,0.00017753,2]
[365203377,1749531058154,-151.0,0.00017753,2]
[365203378,1749531058163,-151.0,0.00017753,2]
[365203379,1749531058174,-151.0,0.00017753,2]
[365203380,1749531058183,-151.0,0.00017753,2]
[365203381,1749531058193,-151.0,0.00017753,2]
[365203382,1749531058202,-151.0,0.00017753,2]
[365203383,1749531058212,-151.0,0.00017753,2]
[365203384,1749531058222,-151.0,0.00017753,2]
[365203385,1749531058232,-151.0,0.00017753,2]
[365203386,1749531058241,-151.0,0.00017753,2]
[365203387,1749531058251,-151.0,0.00017753,2]
[365203388,1749531058260,-151.0,0.00017753,2]
[365203389,1749531058270,-151.0,0.00017753,2]
[365203390,1749531058279,-151.0,0.00017753,2]
[365203391,1749531058289,-151.0,0.00017753,2]
[365203392,1749531058299,-151.0,0.00017753,2]
[365203393,1749531058308,-253.298562,0.00017753,2]
[365203394,1749531058317,-490.0,0.00017753,2]
[365203395,1749531058326,-490.0,0.00017753,2]
[365203396,1749531058335,-151.0,0.00017753,2]
[365203397,1749531058345,-448.73011776,0.00017753,2]
[365203398,1749531058354,-151.0,0.00017753,2]
[365203399,1749531058364,-151.0,0.00017753,2]
[365203400,1749531058373,-530.81,0.00017753,2]
[365203401,1749531058383,-282.217278,0.00017753,2]
[365203402,1749531058392,-282.217278,0.00017753,2]
[365203403,1749531058402,-151.0,0.00017753,2]
[365203404,1749531058411,-151.0,0.00017753,2]
[365203405,1749531058423,-247.743542,0.00017753,2]
[365203406,1749531058433,-151.0,0.00017753,2]
[365203407,1749531058442,-151.0,0.00017753,2]
[365203408,1749531058452,-152.462824,0.00017753,2]
[365203409,1749531058462,-152.462824,0.00017753,2]
[365203410,1749531058471,-490.0,0.00017753,2]
[365203411,1749531058481,-3093.68,0.00017753,2]
[365203412,1749531058490,-505.11,0.00017753,2]
[365203413,1749531058501,-490.0,0.00017753,2]
[365203414,1749531058512,-151.0,0.00017753,2]
[365203415,1749531058522,-771.72,0.00017753,2]
[365203416,1749531058532,-578.15,0.00017753,2]
[365203417,1749531058543,-490.0,0.00017753,2]
[365203418,1749531058553,-895.39,0.00017753,2]
[365203419,1749531058563,-1050.05,0.00017753,2]
[365203420,1749531058573,-869.33,0.00017753,2]
[365203421,1749531058583,-490.0,0.00017753,2]
[365203422,1749531058594,-539.45,0.00017753,2]
[365203423,1749531058604,-281.05,0.00017753,2]
[365203424,1749531058614,-490.0,0.00017753,2]
[365203425,1749531058624,-2021.14,0.00017753,2]
[365203426,1749531058634,-490.0,0.00017753,2]
[365203427,1749531058644,-524.92,0.00017753,2]
[365203428,1749531058654,-490.0,0.00017753,2]
[365203429,1749531058664,-270.57,0.00017753,2]
[365203430,1749531058674,-490.0,0.00017753,2]
[365203431,1749531058684,-490.0,0.00017753,2]
[365203432,1749531058694,-490.0,0.00017753,2]
[365203433,1749531058704,-852.22,0.00017753,2]
[365203434,1749531058714,-1161.1,0.00017753,2]
[365203435,1749531058723,-490.0,0.00017753,2]
[365203436,1749531058733,-490.0,0.00017753,2]
[365203437,1749531058743,-490.0,0.00017753,2]
[365203438,1749531058753,-490.0,0.00017753,2]
[365203439,1749531058764,-1165.21,0.00017753,2]
[365203440,1749531058774,-1144.01,0.00017753,2]
[365203441,1749531058784,-490.0,0.00017753,2]
[365203442,1749531058794,-490.0,0.00017753,2]
[365203443,1749531058804,-490.0,0.00017753,2]
[365203444,1749531058814,-653.12,0.00017753,2]
[365203445,1749531058823,-1660.8,0.00017753,2]
[365203446,1749531058834,-588.25,0.00017753,2]
[365203447,1749531058844,-371.58,0.00017753,2]
[365203448,1749531058854,-371.5,0.00017753,2]
[365203449,1749531058864,-1064.72,0.00017753,2]
[365203450,1749531058874,-27374.38,0.00017753,2]
[365203451,1749531058884,-490.0,0.00017753,2]
[365203452,1749531058893,-740.84,0.00017753,2]
[365203453,1749531058904,-846.1,0.00017753,2]
[365203454,1749531058914,-547.01,0.00017753,2]
[365203455,1749531058924,-490.0,0.00017753,2]
[365203456,1749531058935,-490.0,0.00017753,2]
[365203457,1749531058945,-521.73,0.00017753,2]
[365203458,1749531058955,-490.0,0.00017753,2]
[365203459,1749531058966,-490.0,0.00017753,2]
[365203460,1749531058976,-490.0,0.00017753,2]
[365203461,1749531058985,-504.1012949,0.00017753,2]
[365203462,1749531058995,-356.684717,0.00017753,2]
[365203463,1749531059005,-1177.41,0.00017753,2]
[365203464,1749531059014,-356.684717,0.00017753,2]
[365203465,1749531059023,-490.0,0.00017753,2]
[365203466,1749531059033,-490.0,0.00017753,2]
[365203467,1749531059043,-1183.7,0.00017753,2]
[365203468,1749531059053,-173.46688585,0.00017753,2]
[365203469,1749531059063,-33523.56214352,0.00017759,2]
[365203470,1749531059073,-1000.0,0.00017763,2]
[365203471,1749531059082,-200.0,0.00017764,2]
[365203472,1749531059092,-150.0,0.00017764,2]
[365203473,1749531059102,-150.0,0.00017767,2]
[365203474,1749531059111,-1528.54761871,0.00017779,2]
[365203475,1749531059121,-11327.61506268,0.00017783,2]
[365203476,1749531059131,-150.0,0.00017791,2]
[365203477,1749531059140,-150.0,0.00017794,2]
[365203478,1749531059150,-5028.51897551,0.00017796,2]
[365203479,1749531059159,-1802.73844245,0.000178,3]
[365203480,1749531059169,-5028.51897551,0.00017806,2]
[365203481,1749531059179,-151.0,0.00017808,2]
[365203482,1749531059188,-151.369753,0.00017808,2]
[365203483,1749531059198,-151.0,0.00017808,2]
[365203484,1749531059207,-151.0,0.00017808,2]
[365203485,1749531059216,-182.596802,0.00017808,2]
[365203486,1749531059226,-182.596802,0.00017808,2]
[365203487,1749531059235,-151.0,0.00017808,2]
[365203488,1749531059245,-151.0,0.00017808,2]
[365203489,1749531059254,-151.0,0.00017808,2]
[365203490,1749531059263,-169.302,0.00017808,2]
[365203491,1749531059272,-169.302,0.00017808,2]
[365203492,1749531059282,-500.0,0.00017808,2]
[365203493,1749531059291,-500.0,0.00017808,2]
[365203494,1749531059301,-500.0,0.00017808,2]
[365203495,1749531059309,-500.0,0.00017808,2]
[365203496,1749531059319,-500.0,0.00017808,2]
[365203497,1749531059328,-500.0,0.00017808,2]
[365203498,1749531059337,-500.0,0.00017808,2]
[365203499,1749531059346,-500.0,0.00017808,2]
[365203500,1749531059355,-500.0,0.00017808,2]
[365203501,1749531059364,-500.0,0.00017808,2]
[365203502,1749531059373,-500.0,0.00017808,2]
[365203503,1749531059382,-500.0,0.00017808,2]
[365203504,1749531059392,-500.0,0.00017808,2]
[365203505,1749531059401,-500.0,0.00017808,2]
[365203506,1749531059410,-500.0,0.00017808,2]
[365203507,1749531059421,-500.0,0.00017808,2]
[365203508,1749531059432,-317.08906801,0.00017808,2]
[365203509,1749531059441,-500.0,0.00017808,2]
[365203510,1749531059450,-500.0,0.00017808,2]
[365203511,1749531059459,-500.0,0.00017808,2]
[365203512,1749531059469,-500.0,0.00017808,2]
[365203513,1749531059479,-500.0,0.00017808,2]
[365203514,1749531059488,-470.650731,0.00017808,2]
[365203515,1749531059499,-470.650731,0.00017808,2]
[365203516,1749531059509,-4677.917954,0.00017808,2]
[365203517,1749531059518,-4677.917954,0.00017808,2]
[365203518,1749531059528,-151.0,0.00017808,2]
[365203519,1749531059538,-158.346538,0.00017808,2]
[365203520,1749531059547,-158.346538,0.00017808,2]
[365203521,1749531059557,-151.0,0.00017808,2]
[365203522,1749531059568,-151.0,0.00017808,2]
[365203523,1749531059577,-596.640802,0.00017808,2]
[365203524,1749531059587,-596.640802,0.00017808,2]
[365203525,1749531059597,-151.0,0.00017808,2]
[365203526,1749531059606,-200.0,0.00017809,2]
[365203527,1749531059616,-11327.61506268,0.00017811,2]
[365203528,1749531059626,-5028.51897551,0.00017813,2]
[365203529,1749531059635,-1000.0,0.00017816,2]
[365203530,1749531059645,-3563.85273562,0.00017816,2]
[365203531,1749531059654,-1000.0,0.00017828,2]
[365203532,1749531059664,-200.0,0.00017831,2]
[365203533,1749531059674,-150.0,0.00017831,2]
[365203534,1749531059683,-234.2337816,0.00017839,2]
[365203535,1749531059693,-150.0,0.00017848,2]
[365203536,1749531059702,-373.73,0.00017848,2]
[365203537,1749531059712,-3563.85273562,0.00017864,2]
[365203538,1749531059721,-1528.54761871,0.00017867,2]
[365203539,1749531059731,-200.0,0.00017869,2]
[365203540,1749531059740,-151.0,0.00017872,2]
[365203541,1749531059750,-192.062464,0.00017872,2]
[365203542,1749531059760,-150.0,0.00017875,2]
[365203543,1749531059770,-1528.54761871,0.00017879,2]
[365203544,1749531059780,-150.0,0.00017881,2]
[365203545,1749531059790,-3563.85273562,0.00017883,2]
[365203546,1749531059800,-33523.56214352,0.00017884,2]
[365203547,1749531059811,-33523.56214352,0.00017884,2]
[365203548,1749531059821,-160.56397885,0.00017885,2]
[365203549,1749531059831,-11327.61506268,0.00017888,2]
[365203550,1749531059840,-151.0,0.0001789,2]
[365203551,1749531059850,-151.0,0.0001789,2]
[365203552,1749531059859,-151.0,0.0001789,2]
[365203553,1749531059869,-151.0,0.0001789,2]
[365203554,1749531059878,-151.0,0.0001789,2]
[365203555,1749531059888,-151.0,0.0001789,2]
[365203556,1749531059898,-151.0,0.0001789,2]
[365203557,1749531059907,-151.0,0.0001789,2]
[365203558,1749531059917,-200.0,0.00017897,2]
[365203559,1749531059927,-150.0,0.00017899,2]
[365203560,1749531059936,-200.0,0.000179,2]
[365203561,1749531059946,-295.93365837,0.000179,2]
[365203562,1749531059956,-2000.0,0.000179,6]
[365203563,1749531059966,-255.25127838,0.000179,2]
[365203564,1749531059975,-255.25127831,0.000179,2]
[365203565,1749531059984,-255.25127831,0.000179,2]
[365203566,1749531059994,-255.25127831,0.000179,2]